bitfinex/quotes_ETHUSD_20251230
["timestamp","ask_amount","ask_price","bid_price","bid_amount"]
[1767102171825,0.2673,2989.1,2988.7,2.4887]
[1767102172222,0.002,2989.1,2988.7,2.4887]
[1767102176730,4.22331767,2989.3,2988.9,2.4887]
[1767102177413,4.49061767,2989.3,2988.9,2.4887]
[1767102177725,0.878,2989.3,2989.0,2.4887]
[1767102178023,0.878,2989.3,2989.1,2.4887]
[1767102178636,4.22326615,2989.3,2989.1,2.4887]
[1767102180300,7.8358323,2989.3,2988.9,2.287]
[1767102180505,4.49056615,2989.3,2988.9,2.287]
[1767102180901,3.3492,2989.7,2989.1,2.287]
[1767102181127,2.4712,2989.6,2989.1,2.287]
[1767102181938,9.16128194,2989.5,2988.9,0.2287]
[1767102182236,2.4712,2989.4,2988.7,2.287]
[1767102183613,2.4712,2989.3,2988.6,0.001]
[1767102183927,2.4712,2989.1,2988.6,0.001]
[1767102184124,2.4712,2988.9,2988.6,0.001]
[1767102184520,2.4712,2988.9,2988.2,2.287]
[1767102184710,2.4712,2988.9,2988.3,2.5158]
[1767102186331,2.4712,2988.9,2988.3,2.5168]
[1767102186532,2.4712,2988.8,2988.3,2.5168]
[1767102188051,2.4712,2988.8,2988.1,2.288]
[1767102188224,3.34616028,2988.5,2987.9,2.288]
[1767102188421,2.4712,2988.4,2987.9,2.288]
[1767102188645,2.4712,2988.4,2987.6,2.287]
[1767102188847,2.4712,2988.4,2987.7,2.5158]
[1767102189053,2.4712,2988.4,2987.7,7.40661102]
[1767102190352,2.4712,2988.2,2987.7,2.287]
[1767102191060,2.4712,2988.1,2987.7,2.287]
[1767102191258,2.4712,2988.1,2987.5,2.288]
[1767102192847,3.34661664,2988.1,2987.5,2.288]
[1767102193046,2.4712,2988.0,2987.5,2.288]
[1767102193231,2.4712,2988.0,2987.5,3.0058811]
[1767102193434,2.4712,2988.0,2987.6,2.287]
[1767102196151,4.22454388,2988.2,2987.6,2.287]
[1767102196731,6.69304388,2988.2,2987.6,2.287]
[1767102196931,2.4685,2988.1,2987.6,2.287]
[1767102200960,2.4685,2988.1,2987.7,2.3476]
[1767102205637,5.81511788,2988.1,2987.7,2.3476]
[1767102206158,2.4685,2988.1,2987.7,2.3476]
[1767102208566,5.81511991,2988.1,2987.7,2.3476]
[1767102209737,2.4685,2988.1,2987.7,2.3476]
[1767102210250,5.8151095,2988.1,2987.7,2.3476]
[1767102210639,5.81511692,2988.1,2987.7,2.3476]
[1767102210840,2.4685,2988.1,2987.7,2.3476]
[1767102211545,2.4685,2988.1,2987.4,4.89081102]
[1767102211743,2.4685,2988.1,2987.5,4.11e-05]
[1767102216675,4.22455375,2988.2,2987.5,2.3476411]
[1767102216967,2.4685,2988.1,2987.5,2.3476411]
[1767102218269,2.4685,2988.1,2987.5,2.3486411]
[1767102218868,2.4705,2988.1,2987.5,2.3486411]
[1767102219069,2.4705,2988.1,2987.7,2.3476]
[1767102220772,0.878,2988.2,2987.7,2.3476]
[1767102221076,3.3465,2988.2,2987.7,2.3476]
[1767102221473,2.4685,2988.1,2987.7,2.3476]
[1767102225474,0.878,2988.2,2987.7,2.3476]
[1767102225974,3.3461889,2988.5,2988.0,2.3476]
[1767102226546,2.309,2988.4,2988.0,2.3476]
[1767102226749,2.309,2988.4,2987.8,2.4356]
[1767102227078,2.309,2988.3,2987.6,2.4356]
[1767102227573,5.6551889,2988.5,2987.6,2.4356]
[1767102227782,5.6551889,2988.5,2987.8,2.4356]
[1767102228281,2.309,2988.4,2987.8,2.4356]
[1767102230447,3.34630424,2988.4,2987.8,2.4356]
[1767102230647,2.309,2988.3,2987.8,2.4356]
[1767102232578,5.65541115,2988.3,2987.8,2.4356]
[1767102234288,0.002,2988.4,2987.8,2.4356]
[1767102234449,2.309,2988.3,2987.8,2.4356]
[1767102235578,2.309,2988.3,2987.8,2.79132641]
[1767102236383,0.002,2988.4,2987.8,2.79132641]
[1767102236764,2.311,2988.4,2987.8,2.79132641]
[1767102241182,2.3104,2988.3,2987.8,2.79132641]
[1767102241377,2.3104,2988.3,2987.8,2.4356]
[1767102241888,2.3104,2988.3,2987.6,2.3384]
[1767102242071,2.3104,2988.3,2987.2,1.34]
[1767102242271,2.3104,2988.3,2987.3,2.3384]
[1767102243058,2.3104,2988.1,2987.3,2.3384]
[1767102243257,2.3104,2988.0,2987.3,2.3384]
[1767102243459,2.3104,2988.0,2987.1,2.219]
[1767102243679,2.3104,2988.0,2987.2,2.3384]
[1767102244486,2.3104,2988.0,2987.1,1.341]
[1767102244487,2.3104,2988.0,2987.0,0.001]
[1767102244693,2.3104,2988.0,2987.1,2.3384]
[1767102244859,2.3104,2987.8,2987.1,2.3384]
[1767102245281,2.3104,2987.8,2987.2,7.26396184]
[1767102245477,2.3104,2987.8,2987.2,7.23048568]
[1767102245759,0.002,2988.4,2987.6,2.3384]
[1767102246093,0.6691,2988.2,2987.7,2.3384]
[1767102246688,0.878,2988.3,2987.7,2.3384]
[1767102246885,1.5471,2988.3,2987.7,2.3384]
[1767102247990,4.89354095,2988.3,2987.7,2.3384]
[1767102248987,0.6691,2988.5,2988.1,2.3384]
[1767102249192,4.01536936,2988.5,2988.1,2.3384]
[1767102250062,0.002,2988.3,2988.1,2.3384]
[1767102253193,4.01536936,2988.5,2988.1,2.3384]
[1767102253382,3.34626936,2988.5,2988.1,2.3384]
[1767102255097,0.6691,2988.6,2988.1,2.3384]
[1767102256695,3.34616028,2988.5,2988.1,2.3384]
[1767102256996,7.36142056,2988.5,2988.1,2.3384]
[1767102263485,8.09776262,2988.5,2988.1,2.3384]
[1767102266807,8.09976262,2988.5,2988.1,2.3384]
[1767102268889,4.75360234,2988.5,2988.1,2.3384]
[1767102269089,4.01726028,2988.5,2988.1,2.3384]
[1767102270500,7.36342056,2988.5,2988.1,2.3384]
[1767102273328,4.01726028,2988.5,2988.1,2.3384]
[1767102273617,3.34816028,2988.5,2988.1,2.3384]
[1767102274205,4.01726028,2988.5,2988.1,2.3384]
[1767102275627,3.34816028,2988.5,2988.1,2.3384]
[1767102283326,0.002,2988.5,2988.1,2.3384]
[1767102288543,3.34772155,2988.9,2988.5,2.3886]
[1767102289308,0.002,2988.9,2988.5,2.3886]
[1767102289706,0.002,2989.1,2988.7,2.3886]
[1767102290234,0.6751,2989.1,2988.7,2.3886]
[1767102290541,4.02061932,2989.1,2988.8,0.72785111]
[1767102290744,4.02061932,2989.1,2988.7,2.3886]
[1767102292244,0.6751,2989.1,2988.7,2.3886]
[1767102292747,4.02060676,2989.1,2988.7,2.3886]
[1767102293243,0.6751,2989.1,2988.7,2.3886]
[1767102294753,4.0205895,2989.1,2988.7,2.3886]
[1767102295447,0.6731,2989.0,2988.3,2.3886]
[1767102295653,0.6731,2989.0,2988.5,2.3886]
[1767102296146,0.6731,2989.0,2988.2,0.23394]
[1767102296331,0.6731,2989.0,2988.2,5.12385112]
[1767102296942,3.34562212,2989.0,2988.2,4.45075112]
[1767102297144,3.34562212,2989.0,2988.3,2.3886]
[1767102297341,3.34562212,2989.0,2988.4,2.3886]
[1767102299026,0.002,2989.1,2988.4,2.3886]
[1767102299259,0.002,2989.0,2988.4,2.3886]
[1767102300334,0.002,2989.0,2988.5,2.4561]
[1767102300938,0.002,2989.0,2988.7,2.4561]
[1767102314836,0.01,2990.0,2989.0,2.4561]
[1767102315152,0.01,2990.0,2989.6,2.4561]
[1767102315967,3.34650844,2990.0,2989.6,2.4561]
[1767102316133,0.002,2990.0,2989.6,2.4561]
[1767102316334,3.36028221,2990.2,2989.4,2.4769]
[1767102316535,3.36028221,2990.2,2989.6,2.4769]
[1767102317370,0.016,2990.1,2989.6,2.4769]
[1767102318444,0.002,2990.2,2989.6,2.4769]
[1767102320470,3.3462713,2990.2,2989.6,2.4769]
[1767102321338,3.3622713,2990.2,2989.6,2.4769]
[1767102323571,3.3462713,2990.2,2989.6,2.4769]
[1767102323757,0.016,2990.1,2989.3,2.4769]
[1767102324077,0.016,2990.1,2989.5,2.4769]
[1767102324441,0.016,2990.1,2989.4,0.73668111]
[1767102324666,3.36036988,2990.1,2989.4,0.72068111]
[1767102324856,3.34436988,2990.1,2989.4,0.72068111]
[1767102325486,3.34436988,2990.1,2989.2,7.36681112]
[1767102326286,3.34436988,2990.1,2989.3,2.4769]
[1767102327277,3.3462579,2990.2,2989.3,2.4769]
[1767102329745,0.002,2990.2,2989.3,2.4769]
[1767102329950,0.002,2990.2,2989.3,2.4779]
[1767102330180,0.002,2990.2,2989.4,0.73678111]
[1767102332474,0.002,2990.2,2989.5,2.4769]
[1767102332674,0.002,2990.2,2989.4,0.73678111]
[1767102332980,0.002,2990.2,2989.5,2.4769]
[1767102333181,0.002,2990.2,2989.4,0.73678111]
[1767102333376,0.002,2990.2,2989.5,0.40926811]
[1767102333572,0.002,2990.2,2989.5,2.88616811]
[1767102334766,3.3438106,2990.6,2990.0,4.88991112]
[1767102334965,3.3438106,2990.6,2990.1,2.4769]
[1767102335273,1.6722,2990.5,2989.8,4.88991112]
[1767102335577,1.6722,2990.5,2989.9,0.48899111]
[1767102335770,6.6876212,2990.6,2990.0,2.4769]
[1767102336267,8.3598212,2990.6,2990.0,2.4769]
[1767102336774,1.6722,2990.3,2989.6,2.4769]
[1767102337074,1.6722,2990.2,2989.6,2.4769]
[1767102338584,4.88991112,2990.5,2989.6,2.4769]
[1767102338585,1.6722,2990.5,2989.7,2.4769]
[1767102339608,0.002,2990.6,2989.9,2.4769]
[1767102340159,6.68701282,2990.9,2990.1,2.4769]
[1767102340593,1.6742,2991.0,2990.1,2.4769]
[1767102340891,1.6742,2990.8,2990.1,2.4769]
[1767102341191,4.88991112,2990.7,2990.1,2.4769]
[1767102341701,1.6742,2990.6,2990.1,2.4769]
[1767102342065,1.6742,2990.6,2989.8,0.878]
[1767102342470,1.6742,2990.6,2989.9,2.4769]
[1767102342781,1.6742,2990.6,2989.9,2.81239]
[1767102343188,3.34367814,2990.8,2989.9,2.81239]
[1767102343372,8.36155628,2990.8,2990.1,2.4769]
[1767102343575,1.6742,2990.7,2990.1,2.4769]
[1767102345159,0.002,2990.6,2990.1,2.4769]
[1767102345389,5.02009184,2990.6,2990.1,2.4769]
[1767102346280,3.34589184,2990.6,2990.1,2.4769]
[1767102346494,1.6742,2990.5,2990.1,1.9810019]
[1767102348505,3.34589184,2990.6,2990.1,1.9810019]
[1767102349393,5.51599184,2990.6,2990.1,1.9810019]
[1767102349589,4.88530771,2990.4,2989.7,2.4172]
[1767102349790,2.1691,2990.3,2989.5,3.841]
[1767102350002,2.1691,2990.3,2989.6,2.4172]
[1767102351693,5.5133579,2990.2,2989.6,2.4172]
[1767102352620,2.1691,2990.0,2989.5,0.001]
[1767102353300,0.8879697,2990.6,2989.6,2.4172]
[1767102353602,6.68784484,2990.5,2989.6,2.4172]
[1767102354788,0.002,2990.6,2989.6,2.45064929]
[1767102355905,2.1711,2990.6,2989.6,2.45064929]
[1767102356608,2.1711,2990.6,2989.6,2.4172]
[1767102356809,3.34403424,2990.4,2989.7,0.03344817]
[1767102357106,3.34403424,2990.4,2989.8,2.4172]
[1767102357309,3.34403424,2990.4,2990.0,2.4172]
[1767102359813,3.34403424,2990.4,2990.0,2.4182]
[1767102360011,8.85716848,2990.4,2990.0,2.4182]
[1767102360383,9.75101592,2990.4,2990.0,2.4182]
[1767102360703,2.1691,2990.3,2990.0,2.4182]
[1767102361300,3.3442579,2990.2,2990.0,0.001]
[1767102363401,3.34416047,2990.3,2990.0,2.3864]
[1767102364694,6.68832094,2990.3,2990.0,2.3864]
[1767102365020,9.97575636,2990.3,2989.6,2.3854]
[1767102365184,9.13972094,2990.3,2989.6,2.3854]
[1767102366022,0.002,2990.6,2989.6,2.3854]
[1767102366391,2.4514,2990.5,2989.6,2.3854]
[1767102368224,2.4514,2990.2,2989.6,2.3854]
[1767102369309,2.4514,2990.1,2989.3,2.3864]
[1767102369625,2.69674,2990.1,2989.3,2.3864]
[1767102370138,2.4514,2989.9,2989.3,2.3864]
[1767102371836,5.79610533,2989.8,2989.3,2.3864]
[1767102372941,5.79610533,2989.8,2989.4,0.03345152]
[1767102373115,5.79610533,2989.8,2989.5,2.3854]
[1767102374752,5.79612425,2989.8,2989.5,2.3854]
[1767102377931,2.4514,2989.8,2989.5,2.3854]
[1767102378111,2.3931,2990.0,2989.5,2.62404]
[1767102378311,2.3931,2990.0,2989.5,2.3854]
[1767102380227,9.08228692,2989.9,2989.5,2.3854]
[1767102380429,2.3931,2989.8,2989.5,2.3854]
[1767102381912,2.3931,2989.8,2989.5,2.3864]
[1767102382113,5.73789791,2989.8,2989.5,2.3864]
[1767102383012,2.3931,2989.8,2989.5,2.3864]
[1767102383442,3.34464722,2989.9,2989.5,2.3864]
[1767102383939,5.73774722,2989.9,2989.5,2.3864]
[1767102387023,2.3931,2989.8,2989.3,0.001]
[1767102388052,2.3931,2989.8,2989.3,2.4688]
[1767102388455,3.3448172,2989.7,2989.3,2.4688]
[1767102388633,2.3931,2989.6,2989.3,2.4688]
[1767102389160,2.3931,2989.6,2989.3,0.001]
[1767102389479,2.3931,2989.3,2988.7,0.001]
[1767102389762,2.3931,2989.3,2988.6,0.001]
[1767102390119,2.3931,2989.3,2988.1,2.4678]
[1767102390659,2.3931,2989.1,2988.0,0.001]
[1767102390950,2.3931,2989.1,2988.0,2.4688]
[1767102391268,2.3931,2988.9,2988.0,2.4688]
[1767102392156,2.3931,2988.9,2988.1,2.50126608]
[1767102392748,2.3931,2988.7,2988.1,2.50126608]
[1767102392922,2.3931,2988.7,2988.1,2.4678]
[1767102394745,3.34600765,2988.7,2988.1,2.4678]
[1767102394947,2.3931,2988.6,2988.1,2.4678]
[1767102396732,2.3931,2988.4,2987.5,2.4688]
[1767102398852,3.34638423,2988.3,2987.5,2.4688]
[1767102399037,2.3931,2988.3,2987.5,2.4688]
[1767102401964,5.73934308,2988.5,2987.6,2.4678]
[1767102402162,2.3931,2988.5,2987.8,2.4678]
[1767102402532,2.3931,2988.4,2987.8,2.4678]
[1767102404153,2.3931,2988.4,2987.8,2.4688]
[1767102404542,2.3931,2988.3,2987.8,2.4688]
[1767102407467,3.34640371,2988.3,2987.8,2.4688]
[1767102407675,2.3046,2988.2,2987.8,2.4688]
[1767102410066,5.65110502,2988.2,2987.8,2.4688]
[1767102411473,2.3046,2988.1,2987.6,2.2676]
[1767102411670,2.3046,2988.1,2987.2,0.001]
[1767102411868,2.3046,2988.0,2987.2,2.2676]
[1767102412074,0.878,2988.1,2987.2,0.001]
[1767102412075,2.3046,2987.9,2987.2,0.001]
[1767102412677,2.3046,2987.9,2987.2,2.2676]
[1767102413370,2.3046,2987.9,2987.1,0.001]
[1767102413371,2.3046,2987.8,2987.1,0.001]
[1767102414352,2.3046,2987.8,2987.1,2.2676]
[1767102415546,2.3046,2987.7,2987.1,2.2676]
[1767102417592,0.878,2988.0,2987.4,2.2666]
[1767102417877,2.082e-05,2987.9,2987.5,2.2666]
[1767102418177,0.878,2988.0,2987.5,2.2666]
[1767102418770,3.34683222,2987.9,2987.5,2.2666]
[1767102419290,2.4432,2987.8,2987.3,4.89332215]
[1767102419589,0.878,2988.4,2987.8,2.2946]
[1767102419899,2.4432,2988.3,2987.8,0.03346944]
[1767102420051,0.878,2988.4,2987.5,4.89332215]
[1767102420052,3.3212,2988.4,2987.9,2.33698735]
[1767102420250,2.4432,2988.3,2987.9,2.33698735]
[1767102420448,2.4432,2988.3,2987.9,0.04238735]
[1767102420684,2.4432,2988.3,2987.7,2.2946]
[1767102420878,2.4432,2988.1,2987.7,2.2946]
[1767102421051,2.4432,2988.1,2987.7,2.52406]
[1767102421997,3.34643711,2988.3,2987.7,2.52406]
[1767102422495,5.78963711,2988.3,2987.7,2.52406]
[1767102423698,2.4432,2988.2,2987.7,2.52406]
[1767102423892,2.4432,2988.2,2987.7,2.2946]
[1767102425016,2.4432,2988.1,2987.3,2.2946]
[1767102425621,2.4432,2987.9,2987.3,2.2946]
[1767102425784,2.4432,2987.7,2987.3,2.2946]
[1767102426176,2.4432,2987.7,2987.1,2.2956]
[1767102426479,2.4432,2987.7,2987.3,0.001]
[1767102427801,2.4432,2987.6,2987.3,0.001]
[1767102429271,2.4432,2987.6,2987.1,0.001]
[1767102429670,2.4432,2987.6,2987.1,2.2956]
[1767102430096,2.4432,2987.5,2987.1,0.001]
[1767102430291,2.4432,2987.5,2987.1,2.2956]
[1767102430498,5.79031159,2987.7,2987.1,2.2956]
[1767102430698,2.4432,2987.6,2987.1,2.2956]
[1767102431906,8.24050815,2987.6,2987.1,0.001]
[1767102432110,2.4432,2987.3,2986.9,0.001]
[1767102432409,2.4432,2987.3,2986.7,0.001]
[1767102432609,11.58769415,2987.6,2986.8,2.2946]
[1767102432806,2.4432,2987.4,2986.8,2.2946]
[1767102433504,5.79063584,2987.4,2986.8,2.2946]
[1767102433811,2.4432,2987.3,2986.8,2.2946]
[1767102435411,2.4432,2987.3,2986.8,2.2956]
[1767102436791,4.57277996,2987.5,2986.8,2.2956]
[1767102437100,2.451,2987.4,2986.9,2.2681]
[1767102437694,5.79846954,2987.4,2986.9,2.2681]
[1767102438076,2.451,2987.4,2986.9,2.2681]
[1767102438404,5.79841828,2987.4,2986.9,2.2681]
[1767102438814,6.67641828,2987.4,2986.9,2.2681]
[1767102440778,2.451,2987.3,2986.9,2.2681]
[1767102440983,2.451,2987.3,2986.8,0.001]
[1767102441182,2.451,2987.3,2986.6,0.001]
[1767102441679,2.451,2987.3,2986.7,2.2681]
[1767102444216,0.878,2987.4,2987.0,2.2681]
[1767102444820,3.329,2987.4,2987.0,2.2681]
[1767102447307,6.67640499,2987.4,2987.0,2.2681]
[1767102447501,7.67876258,2987.4,2987.0,2.2681]
[1767102450916,4.33135759,2987.4,2987.0,2.2681]
[1767102451098,3.331,2987.4,2987.0,2.2681]
[1767102457438,0.88,2987.4,2987.0,2.2681]
[1767102465140,4.22741306,2987.4,2987.0,2.2681]
[1767102466340,2.2891,2987.3,2987.0,2.2681]
[1767102467444,5.63662091,2987.3,2987.0,2.2681]
[1767102468144,2.2891,2987.3,2987.0,2.2681]
[1767102468646,0.88,2987.4,2987.0,2.2681]
[1767102469233,3.34713486,2987.7,2987.1,2.32607728]
[1767102470039,2.2891,2987.6,2987.1,2.2926]
[1767102471748,2.2891,2988.0,2987.1,2.2926]
[1767102473155,0.002,2987.6,2987.1,2.2926]
[1767102473320,2.2891,2987.8,2987.0,2.2926]
[1767102473522,2.2891,2987.8,2987.2,2.2926]
[1767102473727,0.002,2988.2,2987.5,2.2926]
[1767102473951,2.2891,2988.5,2987.5,2.2926]
[1767102477433,5.63537225,2988.4,2987.5,2.2926]
[1767102478636,2.2891,2988.4,2987.5,2.2926]
[1767102478941,2.2891,2988.4,2987.7,2.2553]
[1767102479330,3.34619088,2988.5,2987.7,2.2553]
[1767102479531,5.62114831,2988.6,2987.7,4.89511142]
[1767102479845,5.62114831,2988.6,2987.8,2.2553]
[1767102480631,3.34804831,2988.6,2987.8,2.2553]
[1767102480859,3.34804831,2988.6,2988.0,2.2553]
[1767102481434,2.2731,2988.5,2988.0,2.2553]
[1767102481639,5.62114831,2988.6,2988.0,2.2553]
[1767102482159,2.2731,2988.5,2988.0,2.2553]
[1767102483440,2.2731,2988.3,2987.6,0.879]
[1767102483641,2.2731,2988.3,2987.4,2.2553]
[1767102483848,2.2731,2988.3,2987.5,2.5720775]
[1767102485767,2.2731,2988.2,2987.5,0.3167775]
[1767102485973,2.2731,2988.2,2987.3,0.91247504]
[1767102486146,2.2731,2988.2,2987.4,2.2553]
[1767102486661,3.34640698,2988.3,2987.4,2.2553]
[1767102486838,2.2731,2988.2,2987.4,2.2553]
[1767102487444,2.2731,2988.2,2987.3,0.91247504]
[1767102487645,2.2731,2988.2,2987.4,1.29951473]
[1767102487845,2.2731,2988.2,2987.4,3.55481473]
[1767102489144,2.2731,2988.2,2987.4,3.58828865]
[1767102491369,2.2731,2988.2,2987.4,3.55481473]
[1767102491667,3.34840698,2988.3,2987.5,2.2553]
[1767102491963,2.2731,2988.2,2987.5,2.2553]
[1767102492160,2.2731,2988.2,2987.6,0.35548147]
[1767102492366,2.2731,2988.2,2987.7,2.2553]
[1767102493077,0.002,2988.3,2987.7,2.2553]
[1767102494372,2.2751,2988.3,2987.7,2.2553]
[1767102494774,2.2751,2988.3,2987.4,3.55481473]
[1767102495080,2.2751,2988.3,2987.5,2.2553]
[1767102495268,2.2751,2988.3,2987.7,2.2553]
[1767102496262,2.4101,2988.2,2987.7,2.2553]
[1767102496463,2.4101,2988.2,2987.5,2.379]
[1767102496664,2.4101,2988.2,2987.3,2.379]
[1767102497075,2.4101,2988.2,2987.2,3.84]
[1767102497378,2.4101,2988.0,2987.2,3.84]
[1767102497582,2.4101,2987.8,2987.2,3.84]
[1767102497761,2.4101,2987.8,2987.1,2.379]
[1767102498274,2.4101,2987.6,2987.1,2.379]
[1767102500265,3.34694423,2987.8,2987.1,2.379]
[1767102500465,2.4101,2987.7,2987.1,2.379]
[1767102501856,4.22488634,2987.9,2987.2,2.379]
[1767102502060,2.4101,2987.8,2987.2,2.379]
[1767102502583,0.002,2988.6,2987.3,0.03347504]
[1767102502790,1.8689,2988.3,2987.5,2.379]
[1767102503084,1.8689,2988.3,2987.7,2.379]
[1767102505093,1.8689,2988.3,2987.8,0.03346944]
[1767102505287,1.8689,2988.3,2987.8,2.41246944]
[1767102507158,3.34597436,2988.7,2987.9,2.379]
[1767102508276,2.4121,2988.8,2987.9,2.379]
[1767102508472,0.002,2988.8,2988.1,2.379]
[1767102508673,5.75550401,2989.2,2988.1,2.379]
[1767102508993,2.4101,2989.1,2988.3,2.379]
[1767102511359,0.002,2989.3,2988.3,2.379]
[1767102511564,0.002,2989.3,2988.4,2.379]
[1767102511768,0.002,2989.3,2988.6,2.379]
[1767102511995,2.4121,2989.3,2988.6,2.379]
[1767102513661,5.75547668,2989.2,2988.6,2.379]
[1767102517703,2.4101,2989.2,2988.6,2.379]
[1767102519101,5.75548021,2989.2,2988.6,2.379]
[1767102520011,2.4101,2989.1,2988.6,2.379]
[1767102520908,0.002,2989.2,2988.6,2.379]
[1767102521193,0.002,2989.2,2988.6,2.617]
[1767102521402,3.34739116,2989.2,2988.6,2.617]
[1767102523379,5.75749116,2989.2,2988.6,2.617]
[1767102525803,2.4101,2989.1,2988.6,2.379]
[1767102527789,2.4496,2989.0,2988.5,0.001]
[1767102529209,3.34556252,2989.1,2987.4,3.34836452]
[1767102529210,2.4496,2988.7,2987.4,3.34836452]
[1767102529411,2.4496,2988.7,2987.8,2.2595]
[1767102529583,2.4496,2988.6,2987.8,2.2595]
[1767102529778,2.4496,2988.4,2987.8,2.2595]
[1767102530584,4.08045125,2988.7,2987.9,2.29296832]
[1767102530784,3.34598011,2988.7,2987.9,2.2595]
[1767102530985,2.4496,2988.6,2987.9,2.2595]
[1767102531982,2.4496,2988.4,2987.9,2.2595]
[1767102533908,2.4496,2988.3,2987.6,2.2595]
[1767102534426,2.4496,2988.3,2987.5,0.5796]
[1767102535314,2.4496,2988.3,2987.5,2.8391]
[1767102535528,2.4496,2988.3,2987.6,2.2595]
[1767102536798,3.34627359,2988.4,2987.6,2.2595]
[1767102537199,5.79587359,2988.4,2987.6,2.2595]
[1767102537908,5.79787359,2988.4,2987.6,2.2595]
[1767102538618,2.4516,2988.4,2987.6,2.2595]
[1767102538822,2.4516,2988.4,2987.7,2.3262]
[1767102539625,4.22410523,2988.6,2987.9,2.3262]
[1767102540000,4.22410523,2988.6,2987.9,2.35966832]
[1767102540233,5.60832172,2988.7,2987.9,0.75867641]
[1767102540439,5.6077886,2989.1,2988.3,2.3262]
[1767102540807,3.3454886,2989.1,2988.3,2.3262]
[1767102541340,8.9532772,2989.1,2988.3,2.3262]
[1767102542605,5.6077886,2989.1,2988.3,2.3262]
[1767102543606,8.9532772,2989.1,2988.3,2.3262]
[1767102543804,8.9532772,2989.1,2988.3,2.56216661]
[1767102544836,5.6077886,2989.1,2988.3,2.56216661]
[1767102545539,8.9532772,2989.1,2988.3,2.56216661]
[1767102546539,8.9552772,2989.1,2988.3,2.56216661]
[1767102547844,8.9552772,2989.1,2988.3,2.3262]
[1767102548409,2.2643,2989.1,2988.3,2.3262]
[1767102548719,0.002,2989.2,2988.5,2.3262]
[1767102549515,0.002,2989.3,2988.5,2.3262]
[1767102549847,0.002,2989.3,2988.7,2.3262]
[1767102553458,0.002,2989.3,2988.7,2.7762]
[1767102555150,3.3451919,2989.4,2988.8,2.3262]
[1767102555557,4.22508528,2989.5,2988.8,2.3262]
[1767102556258,6.55338528,2989.5,2988.8,2.3262]
[1767102556550,6.55338528,2989.5,2988.8,2.60382]
[1767102557471,5.67538528,2989.5,2988.8,2.60382]
[1767102558429,2.3303,2989.5,2988.8,2.60382]
[1767102558639,0.88,2989.6,2988.9,2.3182]
[1767102559953,0.002,2989.6,2988.9,2.3182]
[1767102560151,0.002,2989.6,2989.1,2.3182]
[1767102560385,0.002,2989.8,2989.2,2.3182]
[1767102560659,2.3303,2989.8,2989.2,2.3182]
[1767102562574,3.346596,2989.9,2989.2,2.3182]
[1767102562735,0.002,2989.9,2989.2,2.3182]
[1767102562937,0.002,2990.3,2989.4,2.3182]
[1767102562938,2.3283,2990.2,2989.4,2.3182]
[1767102563145,0.002,2989.8,2989.4,2.3182]
[1767102563338,2.3283,2990.2,2989.4,2.3182]
[1767102563765,3.34429621,2990.2,2989.4,2.3182]
[1767102563939,5.67259621,2990.2,2989.4,2.3182]
[1767102564148,2.3283,2990.1,2989.6,2.3182]
[1767102565166,6.55249048,2990.3,2989.6,2.3182]
[1767102566171,4.22419048,2990.3,2989.6,2.3182]
[1767102566366,2.3283,2990.2,2989.6,2.3182]
[1767102567655,5.67255799,2990.2,2989.6,2.3182]
[1767102567853,5.67255799,2990.2,2989.8,2.3182]
[1767102568054,2.3283,2990.1,2989.8,2.3182]
[1767102568251,2.3283,2990.1,2989.2,0.878]
[1767102568472,2.3283,2990.1,2989.3,2.3182]
[1767102569183,2.3283,2990.0,2989.3,2.3182]
[1767102569383,2.3283,2990.0,2989.4,3.12706126]
[1767102570284,5.6745579,2990.2,2989.5,2.3182]
[1767102570485,2.3283,2990.1,2989.5,2.3182]
[1767102571282,2.3283,2989.8,2989.0,0.259582]
[1767102571494,2.3283,2989.8,2988.9,2.3182]
[1767102572398,2.3283,2989.7,2988.9,2.3182]
[1767102574191,2.3283,2989.7,2988.8,0.878]
[1767102574378,4.89241262,2989.5,2988.4,2.3182]
[1767102574580,2.3283,2989.4,2988.5,2.65393335]
[1767102576288,3.34520885,2989.4,2988.5,0.33573335]
[1767102576487,2.3283,2989.3,2988.5,0.33573335]
[1767102576688,2.3283,2989.3,2988.5,2.65393335]
[1767102576882,2.1823,2989.2,2988.5,3.335e-05]
[1767102577085,2.1823,2989.2,2988.5,0.00103335]
[1767102577290,4.89241262,2989.7,2988.5,0.00103335]
[1767102577291,3.34436975,2990.1,2989.1,7.21061262]
[1767102577581,2.1823,2989.9,2989.1,2.3182]
[1767102577793,2.1823,2989.7,2988.8,2.3182]
[1767102578100,2.1823,2989.7,2988.9,0.80886126]
[1767102578589,3.34492908,2989.6,2988.9,0.80886126]
[1767102578795,2.1823,2989.5,2988.8,2.3182]
[1767102579902,2.1823,2989.5,2988.7,0.878]
[1767102580073,2.1823,2989.5,2988.7,3.1962]
[1767102581469,2.1823,2989.5,2988.8,2.3182]
[1767102581673,2.1823,2989.5,2988.9,2.3182]
[1767102581884,2.1823,2989.5,2988.9,3.12706126]
[1767102583409,0.03345951,2989.6,2989.1,2.3182]
[1767102583699,2.21575951,2989.7,2989.0,2.3182]
[1767102585294,3.34492908,2989.6,2989.0,2.3182]
[1767102585495,2.1823,2989.5,2989.0,2.3182]
[1767102585677,2.21575951,2989.5,2989.0,2.63090613]
[1767102586393,2.21775951,2989.5,2989.0,2.63090613]
[1767102586785,2.1843,2989.5,2989.0,2.63090613]
[1767102586982,2.1843,2989.5,2988.9,0.80886126]